[Event "Titled Tuesday Blitz April 19 Early 2022"]
[White "Karavade, Eesha"]
[Black "Yang, Kaiqi"]
[WhiteFideId "5012600"]
[BlackFideId "8604398"]
[WhiteElo "2258"]
[BlackElo "2373"]
[Result "1-0"]
[Round "05"]
[TimeControl "180+1"]
[Date "2022.04.19"]
[WhiteClock "0:00:43"]
[BlackClock "0:00:03"]

1. d4 {[%clk 0:02:10]}  g6 {[%clk 0:02:58]} 2. c4 {[%clk 0:02:09]}  Bg7 {[%clk 0:02:58]} 3. Nf3 {[%clk 0:02:09]}  f5 {[%clk 0:02:58]} 4. Nc3 {[%clk 0:02:08]}  Nf6 {[%clk 0:02:58]} 5. g3 {[%clk 0:02:09]}  d6 {[%clk 0:02:58]} 6. Bg2 {[%clk 0:02:09]}  O-O {[%clk 0:02:58]} 7. O-O {[%clk 0:02:09]}  c6 {[%clk 0:02:59]} 8. Qc2 {[%clk 0:02:07]}  a5 {[%clk 0:02:59]} 9. e4 {[%clk 0:02:06]}  fxe4 {[%clk 0:02:56]} 10. Nxe4 {[%clk 0:02:06]}  Bf5 {[%clk 0:02:51]} 11. Nxf6+ {[%clk 0:02:05]}  Bxf6 {[%clk 0:02:51]} 12. Qe2 {[%clk 0:02:05]}  Na6 {[%clk 0:02:46]} 13. Bh6 {[%clk 0:02:00]}  Rf7 {[%clk 0:02:34]} 14. Ng5 {[%clk 0:01:59]}  Bxg5 {[%clk 0:02:32]} 15. Bxg5 {[%clk 0:01:59]}  Qd7 {[%clk 0:02:31]} 16. d5 {[%clk 0:01:58]}  Re8 {[%clk 0:02:22]} 17. Rfe1 {[%clk 0:01:51]}  e5 {[%clk 0:02:17]} 18. dxe6 {[%clk 0:01:49]}  Rxe6 {[%clk 0:02:17]} 19. Qd2 {[%clk 0:01:50]}  Nc5 {[%clk 0:02:10]} 20. Rxe6 {[%clk 0:01:48]}  Nxe6 {[%clk 0:02:08]} 21. Bh6 {[%clk 0:01:46]}  Re7 {[%clk 0:01:45]} 22. Rd1 {[%clk 0:01:44]}  a4 {[%clk 0:01:15]} 23. Qxd6 {[%clk 0:01:41]}  Qxd6 {[%clk 0:01:02]} 24. Rxd6 {[%clk 0:01:40]}  Nd4 {[%clk 0:00:15]} 25. h3 {[%clk 0:01:25]}  Re1+ {[%clk 0:00:13]} 26. Kh2 {[%clk 0:01:24]}  Ne6 {[%clk 0:00:07]} 27. g4 {[%clk 0:01:22]}  Bc2 {[%clk 0:00:07]} 28. Rd7 {[%clk 0:01:16]}  Nc5 {[%clk 0:00:07]} 29. Rd8+ {[%clk 0:01:15]}  Kf7 {[%clk 0:00:07]} 30. Rf8+ {[%clk 0:01:15]}  Ke7 {[%clk 0:00:07]} 31. Rh8 {[%clk 0:01:12]}  Re2 {[%clk 0:00:04]} 32. Kg3 {[%clk 0:01:12]}  Ne4+ {[%clk 0:00:04]} 33. Bxe4 {[%clk 0:01:11]}  Bxe4 {[%clk 0:00:04]} 34. Rxh7+ {[%clk 0:01:11]}  Kd6 {[%clk 0:00:04]} 35. Rxb7 {[%clk 0:01:11]}  Kc5 {[%clk 0:00:04]} 36. Rb8 {[%clk 0:01:10]}  Kxc4 {[%clk 0:00:04]} 37. Bg7 {[%clk 0:01:05]}  a3 {[%clk 0:00:04]} 38. bxa3 {[%clk 0:01:02]}  Rxa2 {[%clk 0:00:05]} 39. Rb4+ {[%clk 0:01:00]}  Kd5 {[%clk 0:00:05]} 40. Rd4+ {[%clk 0:01:00]}  Kc5 {[%clk 0:00:04]} 41. Rxe4 {[%clk 0:01:00]}  Rxa3+ {[%clk 0:00:05]} 42. f3 {[%clk 0:00:58]}  Kd5 {[%clk 0:00:05]} 43. Rd4+ {[%clk 0:00:57]}  Ke6 {[%clk 0:00:05]} 44. Rc4 {[%clk 0:00:55]}  Kd5 {[%clk 0:00:06]} 45. Rc3 {[%clk 0:00:55]}  Ra4 {[%clk 0:00:05]} 46. h4 {[%clk 0:00:54]}  Ra7 {[%clk 0:00:03]} 47. Bf6 {[%clk 0:00:53]}  Rf7 {[%clk 0:00:03]} 48. g5 {[%clk 0:00:52]}  Ra7 {[%clk 0:00:02]} 49. Kg4 {[%clk 0:00:51]}  Ra4+ {[%clk 0:00:01]} 50. f4 {[%clk 0:00:51]}  Ra2 {[%clk 0:00:02]} 51. Rd3+ {[%clk 0:00:50]}  Ke6 {[%clk 0:00:01]} 52. Re3+ {[%clk 0:00:50]}  Kd5 {[%clk 0:00:02]} 53. Rg3 {[%clk 0:00:45]}  c5 {[%clk 0:00:01]} 54. h5 {[%clk 0:00:44]}  gxh5+ {[%clk 0:00:01]} 55. Kxh5 {[%clk 0:00:44]}  Rh2+ {[%clk 0:00:02]} 56. Kg4 {[%clk 0:00:44]}  c4 {[%clk 0:00:03]} 57. g6 {[%clk 0:00:43]} 1-0


[Site "https://www.chess.com"]

[Event "Titled Tuesday Blitz April 19 Early 2022"]
[White "Karolczuk, Iwo"]
[Black "Gorshtein, Ido"]
[WhiteFideId "21816972"]
[BlackFideId "2815532"]
[WhiteElo "2277"]
[BlackElo "2415"]
[Result "1/2-1/2"]
[Round "05"]
[TimeControl "180+1"]
[Date "2022.04.19"]
[WhiteClock "0:00:31"]
[BlackClock "0:01:16"]

1. e4 {[%clk 0:03:00]}  c5 {[%clk 0:02:58]} 2. Nf3 {[%clk 0:03:00]}  h6 {[%clk 0:02:57]} 3. d4 {[%clk 0:02:58]}  cxd4 {[%clk 0:02:57]} 4. Nxd4 {[%clk 0:02:55]}  Nf6 {[%clk 0:02:58]} 5. Nc3 {[%clk 0:02:53]}  e5 {[%clk 0:02:58]} 6. Ndb5 {[%clk 0:02:36]}  d6 {[%clk 0:02:57]} 7. a4 {[%clk 0:02:35]}  a6 {[%clk 0:02:51]} 8. Na3 {[%clk 0:02:35]}  Be7 {[%clk 0:02:50]} 9. Bc4 {[%clk 0:02:22]}  O-O {[%clk 0:02:50]} 10. O-O {[%clk 0:02:22]}  Nbd7 {[%clk 0:02:47]} 11. Re1 {[%clk 0:02:20]}  b6 {[%clk 0:02:41]} 12. Nd5 {[%clk 0:02:12]}  Bb7 {[%clk 0:02:40]} 13. c3 {[%clk 0:02:09]}  Rc8 {[%clk 0:02:25]} 14. Ba2 {[%clk 0:02:03]}  Nxd5 {[%clk 0:02:19]} 15. Bxd5 {[%clk 0:02:00]}  Bxd5 {[%clk 0:02:17]} 16. Qxd5 {[%clk 0:02:00]}  Nf6 {[%clk 0:02:16]} 17. Qd3 {[%clk 0:02:00]}  Qd7 {[%clk 0:02:03]} 18. Nc2 {[%clk 0:01:21]}  Qc6 {[%clk 0:01:55]} 19. Nb4 {[%clk 0:01:20]}  Qc4 {[%clk 0:01:53]} 20. Qxc4 {[%clk 0:00:45]}  Rxc4 {[%clk 0:01:54]} 21. f3 {[%clk 0:00:45]}  a5 {[%clk 0:01:52]} 22. Nc2 {[%clk 0:00:45]}  Re8 {[%clk 0:01:40]} 23. Ne3 {[%clk 0:00:44]}  Rc6 {[%clk 0:01:39]} 24. Rd1 {[%clk 0:00:44]}  Bf8 {[%clk 0:01:35]} 25. Nd5 {[%clk 0:00:44]}  Nd7 {[%clk 0:01:29]} 26. Be3 {[%clk 0:00:43]}  f6 {[%clk 0:01:29]} 27. b3 {[%clk 0:00:40]}  Kf7 {[%clk 0:01:28]} 28. c4 {[%clk 0:00:41]}  Ke6 {[%clk 0:01:29]} 29. g4 {[%clk 0:00:41]}  g6 {[%clk 0:01:27]} 30. Kf2 {[%clk 0:00:40]}  Be7 {[%clk 0:01:28]} 31. Rg1 {[%clk 0:00:39]}  Rh8 {[%clk 0:01:27]} 32. Ke2 {[%clk 0:00:38]}  Bd8 {[%clk 0:01:17]} 33. h4 {[%clk 0:00:37]}  Kf7 {[%clk 0:01:14]} 34. h5 {[%clk 0:00:37]}  g5 {[%clk 0:01:11]} 35. Rgd1 {[%clk 0:00:35]}  Ke6 {[%clk 0:01:11]} 36. Nc3 {[%clk 0:00:35]}  Be7 {[%clk 0:01:11]} 37. Nb5 {[%clk 0:00:35]}  Ra8 {[%clk 0:01:11]} 38. Rd5 {[%clk 0:00:36]}  Nc5 {[%clk 0:01:10]} 39. Bxc5 {[%clk 0:00:35]}  bxc5 {[%clk 0:01:11]} 40. Rd2 {[%clk 0:00:34]}  Rb8 {[%clk 0:01:11]} 41. Kd3 {[%clk 0:00:35]}  Rb7 {[%clk 0:01:12]} 42. Kc3 {[%clk 0:00:35]}  Rcb6 {[%clk 0:01:12]} 43. Rb2 {[%clk 0:00:36]}  Rc6 {[%clk 0:01:12]} 44. Kc2 {[%clk 0:00:36]}  Rcb6 {[%clk 0:01:13]} 45. Nc3 {[%clk 0:00:37]}  Rc6 {[%clk 0:01:13]} 46. Nd5 {[%clk 0:00:37]}  Ra6 {[%clk 0:01:13]} 47. Rd1 {[%clk 0:00:38]}  Rc6 {[%clk 0:01:13]} 48. Ne3 {[%clk 0:00:38]}  Ra6 {[%clk 0:01:13]} 49. Kb1 {[%clk 0:00:37]}  Bf8 {[%clk 0:01:13]} 50. Ka2 {[%clk 0:00:37]}  Rc6 {[%clk 0:01:13]} 51. Rd3 {[%clk 0:00:37]}  Rcb6 {[%clk 0:01:14]} 52. Rbd2 {[%clk 0:00:37]}  Rc6 {[%clk 0:01:14]} 53. Nd5 {[%clk 0:00:38]}  Ra6 {[%clk 0:01:14]} 54. Nc3 {[%clk 0:00:37]}  Rc6 {[%clk 0:01:14]} 55. Nb5 {[%clk 0:00:38]}  Rcb6 {[%clk 0:01:14]} 56. Rd5 {[%clk 0:00:38]}  Rc6 {[%clk 0:01:14]} 57. R5d3 {[%clk 0:00:38]}  Rcb6 {[%clk 0:01:15]} 58. Ka3 {[%clk 0:00:35]}  Rc6 {[%clk 0:01:15]} 59. Nc3 {[%clk 0:00:35]}  Rcb6 {[%clk 0:01:15]} 60. Ne2 {[%clk 0:00:35]}  Rc6 {[%clk 0:01:15]} 61. Ng3 {[%clk 0:00:36]}  Rcb6 {[%clk 0:01:15]} 62. Nf5 {[%clk 0:00:36]}  Rc6 {[%clk 0:01:15]} 63. Rc3 {[%clk 0:00:35]}  Rcb6 {[%clk 0:01:15]} 64. Rcd3 {[%clk 0:00:30]}  Rc6 {[%clk 0:01:16]} 65. Rc3 {[%clk 0:00:31]}  Rcb6 {[%clk 0:01:16]} 66. Rcd3 {[%clk 0:00:31]} 1/2-1/2


[Site "https://www.chess.com"]

[Event "Titled Tuesday Blitz April 19 Early 2022"]
[White "Kezin, Roman"]
[Black "Ingebretsen, Jens E"]
[WhiteFideId "24124621"]
[BlackFideId "1522965"]
[WhiteElo "2570"]
[BlackElo "2072"]
[Result "1-0"]
[Round "05"]
[TimeControl "180+1"]
[Date "2022.04.19"]
[WhiteClock "0:00:02"]
[BlackClock "0:00:19"]

1. e4 {[%clk 0:02:58]}  e5 {[%clk 0:02:56]} 2. Nf3 {[%clk 0:02:57]}  Nc6 {[%clk 0:02:56]} 3. Nc3 {[%clk 0:02:57]}  Nf6 {[%clk 0:02:56]} 4. Be2 {[%clk 0:02:58]}  Bc5 {[%clk 0:02:55]} 5. Nxe5 {[%clk 0:02:58]}  Nxe5 {[%clk 0:02:54]} 6. d4 {[%clk 0:02:58]}  Bxd4 {[%clk 0:02:54]} 7. Qxd4 {[%clk 0:02:58]}  d6 {[%clk 0:02:55]} 8. Be3 {[%clk 0:02:51]}  O-O {[%clk 0:02:55]} 9. O-O-O {[%clk 0:02:51]}  a6 {[%clk 0:02:44]} 10. f3 {[%clk 0:02:46]}  b5 {[%clk 0:02:44]} 11. h4 {[%clk 0:02:19]}  Bb7 {[%clk 0:02:17]} 12. g4 {[%clk 0:02:15]}  Nc6 {[%clk 0:01:48]} 13. Qd2 {[%clk 0:02:12]}  b4 {[%clk 0:01:47]} 14. Na4 {[%clk 0:02:07]}  Qe8 {[%clk 0:01:35]} 15. h5 {[%clk 0:02:01]}  Ne5 {[%clk 0:01:27]} 16. b3 {[%clk 0:01:58]}  Bc6 {[%clk 0:01:20]} 17. g5 {[%clk 0:01:56]}  Nfd7 {[%clk 0:01:13]} 18. Qxb4 {[%clk 0:01:43]}  Rb8 {[%clk 0:01:07]} 19. Qa3 {[%clk 0:01:39]}  f5 {[%clk 0:00:45]} 20. f4 {[%clk 0:01:15]}  Ng4 {[%clk 0:00:44]} 21. Bc4+ {[%clk 0:00:51]}  Kh8 {[%clk 0:00:44]} 22. Bd4 {[%clk 0:00:51]}  h6 {[%clk 0:00:31]} 23. Rhg1 {[%clk 0:00:46]}  Kh7 {[%clk 0:00:24]} 24. exf5 {[%clk 0:00:40]}  Qxh5 {[%clk 0:00:23]} 25. gxh6 {[%clk 0:00:35]}  gxh6 {[%clk 0:00:22]} 26. Nc3 {[%clk 0:00:17]}  Ndf6 {[%clk 0:00:22]} 27. Qxa6 {[%clk 0:00:15]}  Bb7 {[%clk 0:00:21]} 28. Qa5 {[%clk 0:00:14]}  Rf7 {[%clk 0:00:21]} 29. Bxf7 {[%clk 0:00:14]}  Qxf7 {[%clk 0:00:21]} 30. Qa7 {[%clk 0:00:12]}  Qf8 {[%clk 0:00:18]} 31. Rde1 {[%clk 0:00:11]}  c5 {[%clk 0:00:18]} 32. Bxf6 {[%clk 0:00:09]}  Nxf6 {[%clk 0:00:19]} 33. Qb6 {[%clk 0:00:08]}  Bd5 {[%clk 0:00:07]} 34. Qc7+ {[%clk 0:00:07]}  Kh8 {[%clk 0:00:06]} 35. Rg6 {[%clk 0:00:07]}  Ng8 {[%clk 0:00:05]} 36. Nxd5 {[%clk 0:00:06]}  Rc8 {[%clk 0:00:04]} 37. Qxd6 {[%clk 0:00:05]}  Qxf5 {[%clk 0:00:04]} 38. Qe5+ {[%clk 0:00:05]}  Qxe5 {[%clk 0:00:05]} 39. fxe5 {[%clk 0:00:05]}  Kh7 {[%clk 0:00:06]} 40. Rxg8 {[%clk 0:00:03]}  Kxg8 {[%clk 0:00:06]} 41. Ne7+ {[%clk 0:00:03]}  Kf7 {[%clk 0:00:06]} 42. Nxc8 {[%clk 0:00:04]}  Ke6 {[%clk 0:00:07]} 43. a4 {[%clk 0:00:05]}  h5 {[%clk 0:00:08]} 44. a5 {[%clk 0:00:03]}  c4 {[%clk 0:00:09]} 45. bxc4 {[%clk 0:00:03]}  h4 {[%clk 0:00:09]} 46. a6 {[%clk 0:00:04]}  h3 {[%clk 0:00:10]} 47. Rh1 {[%clk 0:00:05]}  h2 {[%clk 0:00:11]} 48. Rxh2 {[%clk 0:00:05]}  Kd7 {[%clk 0:00:12]} 49. Nb6+ {[%clk 0:00:05]}  Kc7 {[%clk 0:00:13]} 50. c5 {[%clk 0:00:05]}  Kc6 {[%clk 0:00:13]} 51. a7 {[%clk 0:00:06]}  Kb5 {[%clk 0:00:14]} 52. a8=Q {[%clk 0:00:06]}  Kb4 {[%clk 0:00:15]} 53. c6 {[%clk 0:00:01]}  Kb5 {[%clk 0:00:16]} 54. c7 {[%clk 0:00:01]}  Kb4 {[%clk 0:00:17]} 55. c8=Q {[%clk 0:00:02]}  Kb5 {[%clk 0:00:18]} 56. Qc4+ {[%clk 0:00:02]}  Kxb6 {[%clk 0:00:19]} 57. Qaa6# {[%clk 0:00:02]} 1-0


[Site "https://www.chess.com"]

[Event "Titled Tuesday Blitz April 19 Early 2022"]
[White "Kobo, Ori"]
[Black "Seemann, Jakub"]
[WhiteFideId "2812320"]
[BlackFideId "21874697"]
[WhiteElo "2420"]
[BlackElo "2003"]
[Result "1-0"]
[Round "05"]
[TimeControl "180+1"]
[Date "2022.04.19"]
[WhiteClock "0:00:04"]
[BlackClock "0:00:03"]

1. c4 {[%clk 0:03:00]}  Nf6 {[%clk 0:02:59]} 2. Nc3 {[%clk 0:03:00]}  e5 {[%clk 0:02:52]} 3. Nf3 {[%clk 0:03:00]}  Nc6 {[%clk 0:02:52]} 4. e4 {[%clk 0:03:00]}  Bb4 {[%clk 0:02:51]} 5. d3 {[%clk 0:03:00]}  O-O {[%clk 0:02:50]} 6. a3 {[%clk 0:02:56]}  Bxc3+ {[%clk 0:02:50]} 7. bxc3 {[%clk 0:02:57]}  d6 {[%clk 0:02:50]} 8. g3 {[%clk 0:02:54]}  Ne7 {[%clk 0:02:40]} 9. Bg2 {[%clk 0:02:51]}  c5 {[%clk 0:02:40]} 10. Nh4 {[%clk 0:02:47]}  Nc6 {[%clk 0:02:38]} 11. O-O {[%clk 0:02:45]}  Be6 {[%clk 0:02:38]} 12. f4 {[%clk 0:02:41]}  exf4 {[%clk 0:02:24]} 13. Bxf4 {[%clk 0:02:42]}  Ng4 {[%clk 0:02:17]} 14. Qd2 {[%clk 0:02:30]}  Nge5 {[%clk 0:02:10]} 15. Rab1 {[%clk 0:02:23]}  Qd7 {[%clk 0:02:09]} 16. Kh1 {[%clk 0:02:15]}  f6 {[%clk 0:01:51]} 17. Be3 {[%clk 0:02:13]}  g6 {[%clk 0:01:27]} 18. Bg1 {[%clk 0:01:40]}  Bh3 {[%clk 0:01:15]} 19. Qe2 {[%clk 0:01:18]}  Bxg2+ {[%clk 0:01:14]} 20. Nxg2 {[%clk 0:01:19]}  f5 {[%clk 0:01:02]} 21. d4 {[%clk 0:01:08]}  Ng4 {[%clk 0:00:46]} 22. exf5 {[%clk 0:01:01]}  gxf5 {[%clk 0:00:47]} 23. Nf4 {[%clk 0:00:57]}  Rae8 {[%clk 0:00:46]} 24. Qf3 {[%clk 0:00:57]}  Nf6 {[%clk 0:00:44]} 25. dxc5 {[%clk 0:00:55]}  Ne4 {[%clk 0:00:37]} 26. Rbd1 {[%clk 0:00:54]}  Ne5 {[%clk 0:00:34]} 27. Qh5 {[%clk 0:00:45]}  Qc6 {[%clk 0:00:23]} 28. Nd5 {[%clk 0:00:37]}  Nxc3 {[%clk 0:00:21]} 29. Qg5+ {[%clk 0:00:14]}  Kh8 {[%clk 0:00:19]} 30. Bd4 {[%clk 0:00:14]}  Nxd5 {[%clk 0:00:16]} 31. Bxe5+ {[%clk 0:00:11]}  Rxe5 {[%clk 0:00:16]} 32. cxd5 {[%clk 0:00:11]}  Rxd5 {[%clk 0:00:16]} 33. Rxd5 {[%clk 0:00:10]}  Qxd5+ {[%clk 0:00:17]} 34. Kg1 {[%clk 0:00:11]}  Qxc5+ {[%clk 0:00:18]} 35. Kg2 {[%clk 0:00:11]}  Qd5+ {[%clk 0:00:17]} 36. Kg1 {[%clk 0:00:11]}  Qe4 {[%clk 0:00:17]} 37. Rf4 {[%clk 0:00:07]}  Qe1+ {[%clk 0:00:16]} 38. Kg2 {[%clk 0:00:07]}  Qe2+ {[%clk 0:00:16]} 39. Kh3 {[%clk 0:00:07]}  Qe6 {[%clk 0:00:15]} 40. Kg2 {[%clk 0:00:04]}  Rg8 {[%clk 0:00:10]} 41. Qh5 {[%clk 0:00:03]}  Qg6 {[%clk 0:00:07]} 42. Qf3 {[%clk 0:00:04]}  Rf8 {[%clk 0:00:04]} 43. Qxb7 {[%clk 0:00:04]}  Rf7 {[%clk 0:00:04]} 44. Qa8+ {[%clk 0:00:04]}  Kg7 {[%clk 0:00:05]} 45. Qd5 {[%clk 0:00:04]}  Qf6 {[%clk 0:00:05]} 46. h4 {[%clk 0:00:05]}  Qb2+ {[%clk 0:00:05]} 47. Kh3 {[%clk 0:00:05]}  Qxa3 {[%clk 0:00:05]} 48. Qd4+ {[%clk 0:00:05]}  Kg8 {[%clk 0:00:04]} 49. Qd5 {[%clk 0:00:02]}  Qc5 {[%clk 0:00:05]} 50. Qe6 {[%clk 0:00:02]}  Qe5 {[%clk 0:00:05]} 51. Qc8+ {[%clk 0:00:02]}  Kg7 {[%clk 0:00:05]} 52. h5 {[%clk 0:00:03]}  Qe1 {[%clk 0:00:06]} 53. h6+ {[%clk 0:00:03]}  Kxh6 {[%clk 0:00:06]} 54. Rh4+ {[%clk 0:00:03]}  Kg7 {[%clk 0:00:05]} 55. Qc6 {[%clk 0:00:02]}  Qe2 {[%clk 0:00:05]} 56. Qc3+ {[%clk 0:00:02]}  Qe5 {[%clk 0:00:05]} 57. Qf3 {[%clk 0:00:02]}  d5 {[%clk 0:00:05]} 58. Qh5 {[%clk 0:00:02]}  Kg8 {[%clk 0:00:05]} 59. Qg5+ {[%clk 0:00:02]}  Rg7 {[%clk 0:00:04]} 60. Qd8+ {[%clk 0:00:03]}  Kf7 {[%clk 0:00:05]} 61. Qd7+ {[%clk 0:00:03]}  Kf6 {[%clk 0:00:05]} 62. Qd8+ {[%clk 0:00:03]}  Qe7 {[%clk 0:00:04]} 63. Qxd5 {[%clk 0:00:03]}  Qe6 {[%clk 0:00:04]} 64. Qd4+ {[%clk 0:00:04]}  Kf7 {[%clk 0:00:04]} 65. Qf4 {[%clk 0:00:03]}  Qe2 {[%clk 0:00:03]} 66. Qc7+ {[%clk 0:00:02]}  Kg8 {[%clk 0:00:02]} 67. Qc8+ {[%clk 0:00:03]}  Kf7 {[%clk 0:00:03]} 68. Qxf5+ {[%clk 0:00:03]}  Kg8 {[%clk 0:00:04]} 69. Qc8+ {[%clk 0:00:03]}  Kf7 {[%clk 0:00:04]} 70. Rf4+ {[%clk 0:00:04]}  Kg6 {[%clk 0:00:03]} 71. Qf5+ {[%clk 0:00:04]} 1-0


[Site "https://www.chess.com"]

[Event "Titled Tuesday Blitz April 19 Early 2022"]
[White "Kosteniuk, Alexandra"]
[Black "Pires, Marcos Vinicius Torsani"]
[WhiteFideId "4128125"]
[BlackFideId "2118939"]
[WhiteElo "2469"]
[BlackElo "2273"]
[Result "1-0"]
[Round "05"]
[TimeControl "180+1"]
[Date "2022.04.19"]
[WhiteClock "0:00:50"]
[BlackClock "0:00:18"]

1. d4 {[%clk 0:03:00]}  Nf6 {[%clk 0:02:46]} 2. Nf3 {[%clk 0:03:00]}  g6 {[%clk 0:02:43]} 3. c4 {[%clk 0:03:00]}  Bg7 {[%clk 0:02:43]} 4. Nc3 {[%clk 0:03:00]}  O-O {[%clk 0:02:40]} 5. e4 {[%clk 0:03:00]}  d6 {[%clk 0:02:40]} 6. Be2 {[%clk 0:03:00]}  c5 {[%clk 0:02:34]} 7. O-O {[%clk 0:02:57]}  cxd4 {[%clk 0:02:34]} 8. Nxd4 {[%clk 0:02:57]}  Nc6 {[%clk 0:02:35]} 9. Nc2 {[%clk 0:02:55]}  Nd7 {[%clk 0:02:32]} 10. Nd5 {[%clk 0:02:44]}  Nc5 {[%clk 0:02:26]} 11. f3 {[%clk 0:02:39]}  a5 {[%clk 0:02:25]} 12. Rb1 {[%clk 0:02:38]}  f5 {[%clk 0:02:25]} 13. exf5 {[%clk 0:02:24]}  Bxf5 {[%clk 0:02:25]} 14. Nde3 {[%clk 0:02:21]}  Be6 {[%clk 0:02:18]} 15. b3 {[%clk 0:02:18]}  Qb6 {[%clk 0:02:08]} 16. Kh1 {[%clk 0:02:17]}  Rad8 {[%clk 0:02:00]} 17. Qd2 {[%clk 0:02:04]}  Nb4 {[%clk 0:01:49]} 18. Bb2 {[%clk 0:01:55]}  Bxb2 {[%clk 0:01:48]} 19. Rxb2 {[%clk 0:01:53]}  d5 {[%clk 0:01:35]} 20. Nxb4 {[%clk 0:01:52]}  axb4 {[%clk 0:01:13]} 21. cxd5 {[%clk 0:01:49]}  Bf7 {[%clk 0:00:50]} 22. Bc4 {[%clk 0:01:49]}  Rd6 {[%clk 0:00:46]} 23. Qe2 {[%clk 0:01:48]}  Rfd8 {[%clk 0:00:45]} 24. Ng4 {[%clk 0:01:42]}  h5 {[%clk 0:00:39]} 25. Nh6+ {[%clk 0:01:41]}  Kg7 {[%clk 0:00:40]} 26. Nxf7 {[%clk 0:01:41]}  Kxf7 {[%clk 0:00:41]} 27. Re1 {[%clk 0:01:41]}  Qc7 {[%clk 0:00:40]} 28. Rc2 {[%clk 0:01:37]}  Qd7 {[%clk 0:00:40]} 29. h3 {[%clk 0:01:35]}  Re8 {[%clk 0:00:36]} 30. f4 {[%clk 0:01:34]}  Qf5 {[%clk 0:00:36]} 31. Rd2 {[%clk 0:01:28]}  Qf6 {[%clk 0:00:36]} 32. Qe5 {[%clk 0:01:25]}  Red8 {[%clk 0:00:36]} 33. Rde2 {[%clk 0:01:23]}  R8d7 {[%clk 0:00:27]} 34. Qxf6+ {[%clk 0:01:11]}  exf6 {[%clk 0:00:23]} 35. Re6 {[%clk 0:01:06]}  f5 {[%clk 0:00:22]} 36. g4 {[%clk 0:00:59]}  hxg4 {[%clk 0:00:20]} 37. hxg4 {[%clk 0:01:00]}  Ne4 {[%clk 0:00:20]} 38. Kg2 {[%clk 0:00:56]}  Rc7 {[%clk 0:00:18]} 39. R1xe4 {[%clk 0:00:50]}  fxe4 {[%clk 0:00:18]} 40. Rxd6 {[%clk 0:00:50]} 1-0


[Site "https://www.chess.com"]

[Event "Titled Tuesday Blitz April 19 Early 2022"]
[White "Kozak, Antoni"]
[Black "Zakhartsov, Vladimir"]
[WhiteFideId "21832030"]
[BlackFideId "4145097"]
[WhiteElo "2236"]
[BlackElo "2491"]
[Result "0-1"]
[Round "05"]
[TimeControl "180+1"]
[Date "2022.04.19"]
[WhiteClock "0:00:01"]
[BlackClock "0:00:22"]

1. Nf3 {[%clk 0:03:00]}  d5 {[%clk 0:03:00]} 2. e3 {[%clk 0:02:59]}  c5 {[%clk 0:02:59]} 3. Bb5+ {[%clk 0:02:58]}  Bd7 {[%clk 0:02:59]} 4. Qe2 {[%clk 0:02:55]}  e6 {[%clk 0:02:51]} 5. b3 {[%clk 0:02:54]}  Nf6 {[%clk 0:02:49]} 6. Bb2 {[%clk 0:02:54]}  Bd6 {[%clk 0:02:49]} 7. Bxd7+ {[%clk 0:02:48]}  Nbxd7 {[%clk 0:02:49]} 8. d3 {[%clk 0:02:49]}  O-O {[%clk 0:02:45]} 9. e4 {[%clk 0:02:49]}  e5 {[%clk 0:02:24]} 10. O-O {[%clk 0:02:37]}  d4 {[%clk 0:02:23]} 11. Nbd2 {[%clk 0:02:26]}  b5 {[%clk 0:02:23]} 12. a4 {[%clk 0:02:16]}  a6 {[%clk 0:02:22]} 13. Nh4 {[%clk 0:02:12]}  g6 {[%clk 0:02:19]} 14. g3 {[%clk 0:02:03]}  Qc7 {[%clk 0:02:17]} 15. Ng2 {[%clk 0:01:58]}  Nh5 {[%clk 0:02:13]} 16. Qg4 {[%clk 0:01:39]}  Rac8 {[%clk 0:02:03]} 17. Kh1 {[%clk 0:01:29]}  Nb6 {[%clk 0:02:00]} 18. a5 {[%clk 0:01:20]}  Nd7 {[%clk 0:01:59]} 19. f4 {[%clk 0:01:17]}  exf4 {[%clk 0:01:59]} 20. gxf4 {[%clk 0:01:17]}  f5 {[%clk 0:02:00]} 21. exf5 {[%clk 0:01:15]}  Rxf5 {[%clk 0:01:59]} 22. Ne4 {[%clk 0:01:08]}  Bxf4 {[%clk 0:01:45]} 23. Nh4 {[%clk 0:00:51]}  Ne5 {[%clk 0:01:31]} 24. Qh3 {[%clk 0:00:33]}  Rf7 {[%clk 0:01:28]} 25. b4 {[%clk 0:00:17]}  cxb4 {[%clk 0:01:21]} 26. Bxd4 {[%clk 0:00:17]}  Qd7 {[%clk 0:01:21]} 27. Qxd7 {[%clk 0:00:10]}  Nxd7 {[%clk 0:01:22]} 28. Rf2 {[%clk 0:00:06]}  Bb8 {[%clk 0:01:10]} 29. Rxf7 {[%clk 0:00:05]}  Kxf7 {[%clk 0:01:11]} 30. Rf1+ {[%clk 0:00:05]}  Kg8 {[%clk 0:01:09]} 31. Nf3 {[%clk 0:00:03]}  Rxc2 {[%clk 0:01:01]} 32. Nfg5 {[%clk 0:00:03]}  Bf4 {[%clk 0:00:50]} 33. Ne6 {[%clk 0:00:02]}  Rc1 {[%clk 0:00:47]} 34. Rxc1 {[%clk 0:00:01]}  Bxc1 {[%clk 0:00:48]} 35. N6c5 {[%clk 0:00:01]}  Nxc5 {[%clk 0:00:26]} 36. Nxc5 {[%clk 0:00:01]}  Nf4 {[%clk 0:00:26]} 37. Nxa6 {[%clk 0:00:01]}  Ne6 {[%clk 0:00:22]} 0-1


[Site "https://www.chess.com"]

[Event "Titled Tuesday Blitz April 19 Early 2022"]
[White "Krylov, Ivan"]
[Black "Simonovic, Miroslav"]
[WhiteFideId "24128066"]
[BlackFideId "919152"]
[WhiteElo "2258"]
[BlackElo "2043"]
[Result "0-1"]
[Round "05"]
[TimeControl "180+1"]
[Date "2022.04.19"]
[WhiteClock "0:00:01"]
[BlackClock "0:00:21"]

1. e4 {[%clk 0:02:59]}  c5 {[%clk 0:03:00]} 2. c3 {[%clk 0:02:57]}  d5 {[%clk 0:02:59]} 3. exd5 {[%clk 0:02:57]}  Qxd5 {[%clk 0:03:00]} 4. d4 {[%clk 0:02:57]}  Nc6 {[%clk 0:03:01]} 5. Be3 {[%clk 0:02:56]}  Bf5 {[%clk 0:03:00]} 6. Nf3 {[%clk 0:02:53]}  cxd4 {[%clk 0:03:00]} 7. Nxd4 {[%clk 0:02:51]}  Bxb1 {[%clk 0:02:59]} 8. Rxb1 {[%clk 0:02:46]}  e6 {[%clk 0:02:51]} 9. Nxc6 {[%clk 0:02:35]}  Qxc6 {[%clk 0:02:47]} 10. a4 {[%clk 0:02:25]}  a6 {[%clk 0:02:47]} 11. f3 {[%clk 0:02:11]}  Nf6 {[%clk 0:02:44]} 12. a5 {[%clk 0:02:07]}  Bc5 {[%clk 0:02:39]} 13. Qc1 {[%clk 0:01:48]}  Nd5 {[%clk 0:02:29]} 14. Bxc5 {[%clk 0:01:22]}  Qxc5 {[%clk 0:02:30]} 15. Ra1 {[%clk 0:01:19]}  Rc8 {[%clk 0:02:11]} 16. Bd3 {[%clk 0:01:15]}  O-O {[%clk 0:02:09]} 17. Ra4 {[%clk 0:01:08]}  Rfd8 {[%clk 0:01:53]} 18. Be4 {[%clk 0:00:59]}  f5 {[%clk 0:01:35]} 19. Bc2 {[%clk 0:00:54]}  Nxc3 {[%clk 0:01:16]} 20. bxc3 {[%clk 0:00:31]}  Qxc3+ {[%clk 0:01:17]} 21. Ke2 {[%clk 0:00:25]}  Qxc2+ {[%clk 0:01:11]} 22. Qxc2 {[%clk 0:00:22]}  Rxc2+ {[%clk 0:01:11]} 23. Ke3 {[%clk 0:00:18]}  Rdd2 {[%clk 0:01:01]} 24. Rb4 {[%clk 0:00:14]}  e5 {[%clk 0:00:47]} 25. Rg1 {[%clk 0:00:08]}  Rb2 {[%clk 0:00:35]} 26. Rc4 {[%clk 0:00:07]}  Rd5 {[%clk 0:00:27]} 27. Ra1 {[%clk 0:00:04]}  Rdb5 {[%clk 0:00:22]} 28. Rc7 {[%clk 0:00:01]}  R5b3+ {[%clk 0:00:21]} 0-1


[Site "https://www.chess.com"]